[Event "Titled Tuesday Blitz November 08 Early 2022"]
[White "Guz, Ari"]
[Black "Gholami Orimi, Mahdi"]
[WhiteFideId "2825759"]
[BlackFideId "12558486"]
[WhiteElo "2614"]
[BlackElo "2891"]
[Result "0-1"]
[Round "04"]
[TimeControl "180+1"]
[Date "2022.11.09"]
[WhiteClock "0:00:20"]
[BlackClock "0:01:00"]

1. Nf3 {[%clk 0:03:00]}  d5 {[%clk 0:02:59]} 2. b3 {[%clk 0:03:00]}  c5 {[%clk 0:02:58]} 3. Bb2 {[%clk 0:03:00]}  Nc6 {[%clk 0:02:58]} 4. e3 {[%clk 0:03:00]}  a6 {[%clk 0:02:52]} 5. d4 {[%clk 0:02:58]}  cxd4 {[%clk 0:02:52]} 6. exd4 {[%clk 0:02:57]}  Bf5 {[%clk 0:02:52]} 7. Bd3 {[%clk 0:02:56]}  Bxd3 {[%clk 0:02:53]} 8. Qxd3 {[%clk 0:02:57]}  Nf6 {[%clk 0:02:54]} 9. a3 {[%clk 0:02:53]}  g6 {[%clk 0:02:54]} 10. Nbd2 {[%clk 0:02:53]}  Bg7 {[%clk 0:02:54]} 11. O-O {[%clk 0:02:53]}  O-O {[%clk 0:02:55]} 12. Ne5 {[%clk 0:02:53]}  Rc8 {[%clk 0:02:51]} 13. Rfe1 {[%clk 0:02:49]}  Qc7 {[%clk 0:02:47]} 14. Ndf3 {[%clk 0:02:34]}  Ne4 {[%clk 0:02:44]} 15. c4 {[%clk 0:02:31]}  e6 {[%clk 0:02:43]} 16. cxd5 {[%clk 0:02:14]}  exd5 {[%clk 0:02:44]} 17. Rac1 {[%clk 0:02:14]}  Qd6 {[%clk 0:02:44]} 18. b4 {[%clk 0:02:09]}  Na7 {[%clk 0:02:38]} 19. Nd2 {[%clk 0:01:53]}  Nf6 {[%clk 0:02:17]} 20. h3 {[%clk 0:01:36]}  Rxc1 {[%clk 0:02:13]} 21. Rxc1 {[%clk 0:01:36]}  Rc8 {[%clk 0:02:13]} 22. Rxc8+ {[%clk 0:01:34]}  Nxc8 {[%clk 0:02:14]} 23. Nb3 {[%clk 0:01:32]}  Ne8 {[%clk 0:02:07]} 24. Nc5 {[%clk 0:01:28]}  f6 {[%clk 0:02:04]} 25. Ng4 {[%clk 0:01:08]}  Qc6 {[%clk 0:02:01]} 26. Ne3 {[%clk 0:01:06]}  Ncd6 {[%clk 0:01:58]} 27. Qb3 {[%clk 0:01:03]}  Nc7 {[%clk 0:01:57]} 28. Nd3 {[%clk 0:00:59]}  Bh6 {[%clk 0:01:48]} 29. Ng4 {[%clk 0:00:50]}  Bg7 {[%clk 0:01:47]} 30. Nf4 {[%clk 0:00:49]}  Nc4 {[%clk 0:01:45]} 31. Bc1 {[%clk 0:00:47]}  Kf7 {[%clk 0:01:39]} 32. Nd3 {[%clk 0:00:43]}  Nb5 {[%clk 0:01:37]} 33. Be3 {[%clk 0:00:42]}  h5 {[%clk 0:01:36]} 34. Nh2 {[%clk 0:00:37]}  Nbxa3 {[%clk 0:01:36]} 35. Nf3 {[%clk 0:00:36]}  Nb5 {[%clk 0:01:36]} 36. Nf4 {[%clk 0:00:36]}  Nbd6 {[%clk 0:01:34]} 37. Qd3 {[%clk 0:00:34]}  Ne4 {[%clk 0:01:32]} 38. Nh4 {[%clk 0:00:30]}  g5 {[%clk 0:01:31]} 39. Nxh5 {[%clk 0:00:31]}  gxh4 {[%clk 0:01:31]} 40. f3 {[%clk 0:00:31]}  Nxe3 {[%clk 0:01:21]} 41. Qxe3 {[%clk 0:00:28]}  Ng3 {[%clk 0:01:19]} 42. Nxg3 {[%clk 0:00:26]}  hxg3 {[%clk 0:01:19]} 43. Qf4 {[%clk 0:00:26]}  Qc4 {[%clk 0:01:04]} 44. Qxg3 {[%clk 0:00:25]}  Qxd4+ {[%clk 0:01:05]} 45. Kh2 {[%clk 0:00:26]}  Qxb4 {[%clk 0:01:05]} 46. Qc7+ {[%clk 0:00:25]}  Qe7 {[%clk 0:01:05]} 47. Qc8 {[%clk 0:00:23]}  a5 {[%clk 0:01:00]} 48. h4 {[%clk 0:00:20]}  a4 {[%clk 0:01:01]} 49. g3 {[%clk 0:00:19]}  a3 {[%clk 0:01:01]} 50. Qf5 {[%clk 0:00:20]}  Qe2+ {[%clk 0:01:00]} 51. Kh3 {[%clk 0:00:20]}  Qe6 {[%clk 0:01:00]} 0-1


[Site "https://www.chess.com"]

[Event "Titled Tuesday Blitz November 08 Early 2022"]
[White "Harshavardhan G B"]
[Black "Sernecki, Franciszek"]
[WhiteFideId "25059009"]
[BlackFideId "1169297"]
[WhiteElo "2333"]
[BlackElo "2210"]
[Result "1-0"]
[Round "04"]
[TimeControl "180+1"]
[Date "2022.11.09"]
[WhiteClock "0:00:08"]
[BlackClock "0:00:03"]

1. e4 {[%clk 0:03:00]}  e6 {[%clk 0:02:57]} 2. d4 {[%clk 0:02:58]}  d5 {[%clk 0:02:57]} 3. Nd2 {[%clk 0:02:59]}  c5 {[%clk 0:02:56]} 4. exd5 {[%clk 0:02:59]}  exd5 {[%clk 0:02:57]} 5. Ngf3 {[%clk 0:02:58]}  Nf6 {[%clk 0:02:58]} 6. Bb5+ {[%clk 0:02:57]}  Bd7 {[%clk 0:02:59]} 7. Bxd7+ {[%clk 0:02:56]}  Nbxd7 {[%clk 0:03:00]} 8. O-O {[%clk 0:02:56]}  Be7 {[%clk 0:03:00]} 9. dxc5 {[%clk 0:02:56]}  Nxc5 {[%clk 0:03:01]} 10. Nb3 {[%clk 0:02:57]}  O-O {[%clk 0:03:02]} 11. Nxc5 {[%clk 0:02:56]}  Bxc5 {[%clk 0:03:03]} 12. Bg5 {[%clk 0:02:57]}  Be7 {[%clk 0:03:00]} 13. Re1 {[%clk 0:02:56]}  h6 {[%clk 0:03:00]} 14. Bh4 {[%clk 0:02:54]}  Re8 {[%clk 0:02:53]} 15. c3 {[%clk 0:02:53]}  Qb6 {[%clk 0:02:38]} 16. Qc2 {[%clk 0:02:43]}  Ne4 {[%clk 0:02:31]} 17. Bxe7 {[%clk 0:02:40]}  Rxe7 {[%clk 0:02:32]} 18. Rad1 {[%clk 0:02:40]}  Rae8 {[%clk 0:02:27]} 19. Nd4 {[%clk 0:02:16]}  g6 {[%clk 0:02:18]} 20. f3 {[%clk 0:02:14]}  Nc5 {[%clk 0:02:16]} 21. Rxe7 {[%clk 0:02:12]}  Rxe7 {[%clk 0:02:17]} 22. Qd2 {[%clk 0:02:12]}  Kg7 {[%clk 0:02:15]} 23. h4 {[%clk 0:02:07]}  Ne6 {[%clk 0:01:55]} 24. Qf2 {[%clk 0:02:03]}  Nxd4 {[%clk 0:01:39]} 25. Rxd4 {[%clk 0:02:00]}  h5 {[%clk 0:01:32]} 26. Qd2 {[%clk 0:01:53]}  Rd7 {[%clk 0:01:26]} 27. g3 {[%clk 0:01:47]}  Rc7 {[%clk 0:00:59]} 28. Kg2 {[%clk 0:01:44]}  Rc5 {[%clk 0:00:59]} 29. b4 {[%clk 0:01:33]}  Rc4 {[%clk 0:00:56]} 30. Rxd5 {[%clk 0:01:26]}  Qc6 {[%clk 0:00:54]} 31. Rd3 {[%clk 0:01:26]}  b6 {[%clk 0:00:54]} 32. Re3 {[%clk 0:01:24]}  a5 {[%clk 0:00:53]} 33. bxa5 {[%clk 0:01:20]}  bxa5 {[%clk 0:00:53]} 34. Kh2 {[%clk 0:01:18]}  a4 {[%clk 0:00:50]} 35. Qe1 {[%clk 0:01:14]}  Rc5 {[%clk 0:00:44]} 36. Rd3 {[%clk 0:01:07]}  Qc7 {[%clk 0:00:39]} 37. Qe4 {[%clk 0:01:05]}  Rc4 {[%clk 0:00:38]} 38. Rd4 {[%clk 0:00:33]}  Rxc3 {[%clk 0:00:37]} 39. Rxa4 {[%clk 0:00:34]}  Rc2+ {[%clk 0:00:30]} 40. Kh3 {[%clk 0:00:28]}  Qd7+ {[%clk 0:00:29]} 41. g4 {[%clk 0:00:27]}  Qc7 {[%clk 0:00:26]} 42. Qd4+ {[%clk 0:00:20]}  Kh7 {[%clk 0:00:26]} 43. Qf4 {[%clk 0:00:20]}  hxg4+ {[%clk 0:00:20]} 44. Kxg4 {[%clk 0:00:15]}  Qd7+ {[%clk 0:00:12]} 45. Kg3 {[%clk 0:00:15]}  Qb7 {[%clk 0:00:06]} 46. h5 {[%clk 0:00:13]}  Qd7 {[%clk 0:00:04]} 47. hxg6+ {[%clk 0:00:12]}  fxg6 {[%clk 0:00:05]} 48. Qh4+ {[%clk 0:00:11]}  Kg7 {[%clk 0:00:05]} 49. Qf4 {[%clk 0:00:11]}  Qc7 {[%clk 0:00:06]} 50. Qxc7+ {[%clk 0:00:10]}  Rxc7 {[%clk 0:00:07]} 51. Kg4 {[%clk 0:00:10]}  Rc2 {[%clk 0:00:07]} 52. Ra6 {[%clk 0:00:09]}  Rg2+ {[%clk 0:00:06]} 53. Kf4 {[%clk 0:00:10]}  Rb2 {[%clk 0:00:07]} 54. a4 {[%clk 0:00:11]}  Kh6 {[%clk 0:00:06]} 55. Ke5 {[%clk 0:00:10]}  Ra2 {[%clk 0:00:06]} 56. f4 {[%clk 0:00:11]}  Kh5 {[%clk 0:00:07]} 57. Kf6 {[%clk 0:00:10]}  Rf2 {[%clk 0:00:06]} 58. Ke5 {[%clk 0:00:10]}  Re2+ {[%clk 0:00:07]} 59. Kd4 {[%clk 0:00:10]}  Rf2 {[%clk 0:00:07]} 60. Ke3 {[%clk 0:00:10]}  Ra2 {[%clk 0:00:08]} 61. a5 {[%clk 0:00:10]}  Ra1 {[%clk 0:00:08]} 62. Ke4 {[%clk 0:00:11]}  Re1+ {[%clk 0:00:08]} 63. Kd5 {[%clk 0:00:11]}  Rf1 {[%clk 0:00:07]} 64. Ke5 {[%clk 0:00:11]}  Re1+ {[%clk 0:00:07]} 65. Kd4 {[%clk 0:00:11]}  Rd1+ {[%clk 0:00:08]} 66. Ke3 {[%clk 0:00:11]}  Ra1 {[%clk 0:00:08]} 67. Ra8 {[%clk 0:00:10]}  Kg4 {[%clk 0:00:08]} 68. a6 {[%clk 0:00:10]}  Ra3+ {[%clk 0:00:08]} 69. Ke4 {[%clk 0:00:10]}  Ra4+ {[%clk 0:00:08]} 70. Ke5 {[%clk 0:00:10]}  Ra5+ {[%clk 0:00:09]} 71. Kf6 {[%clk 0:00:10]}  Kxf4 {[%clk 0:00:05]} 72. Kxg6 {[%clk 0:00:10]}  Kg4 {[%clk 0:00:06]} 73. a7 {[%clk 0:00:10]}  Ra6+ {[%clk 0:00:04]} 74. Kg7 {[%clk 0:00:10]}  Kg5 {[%clk 0:00:05]} 75. Kf7 {[%clk 0:00:11]}  Kf5 {[%clk 0:00:05]} 76. Ke7 {[%clk 0:00:11]}  Ke5 {[%clk 0:00:06]} 77. Kd7 {[%clk 0:00:11]}  Kd5 {[%clk 0:00:06]} 78. Kc7 {[%clk 0:00:11]}  Kc5 {[%clk 0:00:06]} 79. Kb7 {[%clk 0:00:12]}  Rb6+ {[%clk 0:00:07]} 80. Kc7 {[%clk 0:00:11]}  Rc6+ {[%clk 0:00:06]} 81. Kd7 {[%clk 0:00:11]}  Rd6+ {[%clk 0:00:05]} 82. Ke7 {[%clk 0:00:10]}  Ra6 {[%clk 0:00:05]} 83. Rc8+ {[%clk 0:00:09]}  Kb6 {[%clk 0:00:02]} 84. a8=Q {[%clk 0:00:09]}  Ra7+ {[%clk 0:00:02]} 85. Qxa7+ {[%clk 0:00:08]}  Kxa7 {[%clk 0:00:03]} 1-0


[Site "https://www.chess.com"]

[Event "Titled Tuesday Blitz November 08 Early 2022"]
[White "Jegorovas, Aleksandras"]
[Black "Kis, Lorand Bela"]
[WhiteFideId "12801950"]
[BlackFideId "2024098"]
[WhiteElo "2247"]
[BlackElo "2085"]
[Result "1-0"]
[Round "04"]
[TimeControl "180+1"]
[Date "2022.11.09"]
[WhiteClock "0:00:05"]
[BlackClock "0:00:04"]

1. d4 {[%clk 0:02:58]}  Nf6 {[%clk 0:02:59]} 2. c4 {[%clk 0:02:58]}  g6 {[%clk 0:03:00]} 3. Nc3 {[%clk 0:02:58]}  Bg7 {[%clk 0:03:00]} 4. e4 {[%clk 0:02:58]}  d6 {[%clk 0:03:01]} 5. Nf3 {[%clk 0:02:59]}  O-O {[%clk 0:03:02]} 6. Be2 {[%clk 0:02:59]}  e5 {[%clk 0:03:02]} 7. O-O {[%clk 0:02:59]}  Nc6 {[%clk 0:03:03]} 8. d5 {[%clk 0:03:00]}  Ne7 {[%clk 0:03:04]} 9. b4 {[%clk 0:03:00]}  Ne8 {[%clk 0:03:00]} 10. c5 {[%clk 0:02:59]}  h6 {[%clk 0:03:01]} 11. Nd2 {[%clk 0:02:52]}  f5 {[%clk 0:03:00]} 12. Nc4 {[%clk 0:02:52]}  Nf6 {[%clk 0:02:31]} 13. f3 {[%clk 0:02:50]}  f4 {[%clk 0:02:26]} 14. a4 {[%clk 0:02:49]}  g5 {[%clk 0:02:26]} 15. b5 {[%clk 0:02:48]}  Ng6 {[%clk 0:02:25]} 16. Ba3 {[%clk 0:02:43]}  Ne8 {[%clk 0:02:13]} 17. a5 {[%clk 0:02:28]}  dxc5 {[%clk 0:01:59]} 18. Bxc5 {[%clk 0:02:27]}  Rf7 {[%clk 0:01:59]} 19. b6 {[%clk 0:02:25]}  Bf8 {[%clk 0:01:49]} 20. Bf2 {[%clk 0:02:12]}  axb6 {[%clk 0:01:31]} 21. axb6 {[%clk 0:02:11]}  Rxa1 {[%clk 0:01:31]} 22. Qxa1 {[%clk 0:02:10]}  h5 {[%clk 0:01:31]} 23. Nb5 {[%clk 0:02:03]}  g4 {[%clk 0:01:21]} 24. Nxe5 {[%clk 0:01:58]}  g3 {[%clk 0:00:56]} 25. hxg3 {[%clk 0:01:51]}  fxg3 {[%clk 0:00:57]} 26. Bxg3 {[%clk 0:01:51]}  Rg7 {[%clk 0:00:54]} 27. Nxg6 {[%clk 0:01:21]}  Rxg6 {[%clk 0:00:53]} 28. Qe5 {[%clk 0:01:00]}  Rxb6 {[%clk 0:00:18]} 29. Qxh5 {[%clk 0:00:48]}  Ng7 {[%clk 0:00:16]} 30. Qh4 {[%clk 0:00:45]}  Bc5+ {[%clk 0:00:14]} 31. Kh1 {[%clk 0:00:40]}  Qf8 {[%clk 0:00:15]} 32. f4 {[%clk 0:00:36]}  Nf5 {[%clk 0:00:15]} 33. exf5 {[%clk 0:00:36]}  Rh6 {[%clk 0:00:15]} 34. Bh5 {[%clk 0:00:36]}  Bxf5 {[%clk 0:00:15]} 35. Qg5+ {[%clk 0:00:34]}  Kh7 {[%clk 0:00:14]} 36. Bf2 {[%clk 0:00:34]}  Qf7 {[%clk 0:00:14]} 37. Kg1 {[%clk 0:00:30]}  Rxh5 {[%clk 0:00:14]} 38. Qg3 {[%clk 0:00:27]}  Bxf2+ {[%clk 0:00:15]} 39. Kxf2 {[%clk 0:00:27]}  Be4 {[%clk 0:00:15]} 40. Nd4 {[%clk 0:00:25]}  Qxd5 {[%clk 0:00:15]} 41. Nf3 {[%clk 0:00:24]}  Qa2+ {[%clk 0:00:15]} 42. Kg1 {[%clk 0:00:24]}  Qa7+ {[%clk 0:00:15]} 43. Rf2 {[%clk 0:00:23]}  Qa1+ {[%clk 0:00:15]} 44. Rf1 {[%clk 0:00:24]}  Qa7+ {[%clk 0:00:15]} 45. Qf2 {[%clk 0:00:23]}  Qxf2+ {[%clk 0:00:15]} 46. Kxf2 {[%clk 0:00:23]}  c5 {[%clk 0:00:16]} 47. Ng5+ {[%clk 0:00:23]}  Rxg5 {[%clk 0:00:16]} 48. fxg5 {[%clk 0:00:23]}  c4 {[%clk 0:00:16]} 49. Ke3 {[%clk 0:00:21]}  Bd3 {[%clk 0:00:16]} 50. Rc1 {[%clk 0:00:20]}  Kg6 {[%clk 0:00:16]} 51. Kd4 {[%clk 0:00:20]}  b5 {[%clk 0:00:16]} 52. Kc5 {[%clk 0:00:19]}  Kxg5 {[%clk 0:00:17]} 53. Kxb5 {[%clk 0:00:19]}  Kg4 {[%clk 0:00:17]} 54. Kb4 {[%clk 0:00:18]}  Kg3 {[%clk 0:00:18]} 55. Kc3 {[%clk 0:00:18]}  Kxg2 {[%clk 0:00:18]} 56. Re1 {[%clk 0:00:18]}  Kf3 {[%clk 0:00:19]} 57. Re7 {[%clk 0:00:19]}  Kf4 {[%clk 0:00:19]} 58. Rc7 {[%clk 0:00:18]}  Ke5 {[%clk 0:00:19]} 59. Rc5+ {[%clk 0:00:18]}  Kd6 {[%clk 0:00:19]} 60. Rg5 {[%clk 0:00:17]}  Ke6 {[%clk 0:00:19]} 61. Kd4 {[%clk 0:00:18]}  Kf6 {[%clk 0:00:20]} 62. Rc5 {[%clk 0:00:18]}  Ke6 {[%clk 0:00:20]} 63. Rc6+ {[%clk 0:00:18]}  Kf5 {[%clk 0:00:20]} 64. Rc8 {[%clk 0:00:17]}  Kf6 {[%clk 0:00:21]} 65. Rf8+ {[%clk 0:00:17]}  Ke7 {[%clk 0:00:21]} 66. Rh8 {[%clk 0:00:17]}  Ke6 {[%clk 0:00:22]} 67. Rh5 {[%clk 0:00:16]}  Kf6 {[%clk 0:00:21]} 68. Re5 {[%clk 0:00:16]}  Kf7 {[%clk 0:00:21]} 69. Ke3 {[%clk 0:00:16]}  Kf6 {[%clk 0:00:21]} 70. Kf4 {[%clk 0:00:16]}  Kf7 {[%clk 0:00:21]} 71. Rc5 {[%clk 0:00:16]}  Ke6 {[%clk 0:00:21]} 72. Rc6+ {[%clk 0:00:15]}  Kd7 {[%clk 0:00:21]} 73. Rc5 {[%clk 0:00:15]}  Kd6 {[%clk 0:00:21]} 74. Rc8 {[%clk 0:00:15]}  Ke6 {[%clk 0:00:21]} 75. Ke3 {[%clk 0:00:14]}  Kd6 {[%clk 0:00:22]} 76. Kd4 {[%clk 0:00:15]}  Ke6 {[%clk 0:00:22]} 77. Rh8 {[%clk 0:00:14]}  Kf5 {[%clk 0:00:22]} 78. Rf8+ {[%clk 0:00:14]}  Ke6 {[%clk 0:00:22]} 79. Rb8 {[%clk 0:00:12]}  Kf6 {[%clk 0:00:22]} 80. Rb5 {[%clk 0:00:11]}  Ke6 {[%clk 0:00:22]} 81. Rd5 {[%clk 0:00:11]}  Kf6 {[%clk 0:00:22]} 82. Re5 {[%clk 0:00:11]}  Kf7 {[%clk 0:00:21]} 83. Kd5 {[%clk 0:00:11]}  Kf6 {[%clk 0:00:22]} 84. Kd6 {[%clk 0:00:11]}  c3 {[%clk 0:00:19]} 85. Rc5 {[%clk 0:00:11]}  c2 {[%clk 0:00:20]} 86. Kd5 {[%clk 0:00:11]}  Bf5 {[%clk 0:00:18]} 87. Kd4 {[%clk 0:00:11]}  Kg5 {[%clk 0:00:19]} 88. Ke3 {[%clk 0:00:11]}  Kg4 {[%clk 0:00:19]} 89. Rc3 {[%clk 0:00:10]}  Kg5 {[%clk 0:00:18]} 90. Kf3 {[%clk 0:00:10]}  Bg6 {[%clk 0:00:16]} 91. Kg3 {[%clk 0:00:09]}  Bf5 {[%clk 0:00:17]} 92. Rc5 {[%clk 0:00:10]}  Kf6 {[%clk 0:00:11]} 93. Kf4 {[%clk 0:00:10]}  Bh7 {[%clk 0:00:11]} 94. Rc6+ {[%clk 0:00:10]}  Kg7 {[%clk 0:00:09]} 95. Kg5 {[%clk 0:00:09]}  Bd3 {[%clk 0:00:08]} 96. Rc7+ {[%clk 0:00:09]}  Kf8 {[%clk 0:00:08]} 97. Kf6 {[%clk 0:00:09]}  Ke8 {[%clk 0:00:09]} 98. Ke6 {[%clk 0:00:09]}  Kd8 {[%clk 0:00:09]} 99. Kd6 {[%clk 0:00:09]}  Ke8 {[%clk 0:00:09]} 100. Rc3 {[%clk 0:00:07]}  Bg6 {[%clk 0:00:09]} 101. Ke6 {[%clk 0:00:06]}  Kf8 {[%clk 0:00:06]} 102. Kf6 {[%clk 0:00:05]}  Bh7 {[%clk 0:00:04]} 103. Rc8# {[%clk 0:00:05]} 1-0


[Site "https://www.chess.com"]

[Event "Titled Tuesday Blitz November 08 Early 2022"]
[White "Jiganchine, Roman"]
[Black "Tokhirjonova, Gulrukhbegim"]
[WhiteFideId "2603667"]
[BlackFideId "14203626"]
[WhiteElo "2352"]
[BlackElo "2236"]
[Result "0-1"]
[Round "04"]
[TimeControl "180+1"]
[Date "2022.11.09"]
[WhiteClock "0:00:01"]
[BlackClock "0:00:57"]

1. e4 {[%clk 0:02:56]}  e5 {[%clk 0:02:59]} 2. Nf3 {[%clk 0:02:56]}  Nc6 {[%clk 0:03:00]} 3. Nc3 {[%clk 0:02:55]}  Nf6 {[%clk 0:02:59]} 4. Bb5 {[%clk 0:02:55]}  Bb4 {[%clk 0:02:58]} 5. O-O {[%clk 0:02:52]}  O-O {[%clk 0:02:58]} 6. Bxc6 {[%clk 0:02:52]}  dxc6 {[%clk 0:02:58]} 7. d3 {[%clk 0:02:52]}  Re8 {[%clk 0:02:56]} 8. Ne2 {[%clk 0:02:48]}  Nd7 {[%clk 0:02:47]} 9. Ng3 {[%clk 0:02:47]}  Nf8 {[%clk 0:02:46]} 10. Kh1 {[%clk 0:02:42]}  Bd6 {[%clk 0:02:44]} 11. a4 {[%clk 0:02:39]}  c5 {[%clk 0:02:44]} 12. a5 {[%clk 0:02:38]}  a6 {[%clk 0:02:44]} 13. Qe2 {[%clk 0:02:28]}  Ng6 {[%clk 0:02:44]} 14. Be3 {[%clk 0:02:17]}  Nf4 {[%clk 0:02:36]} 15. Qd2 {[%clk 0:02:17]}  Bg4 {[%clk 0:02:35]} 16. Ng1 {[%clk 0:02:09]}  Qd7 {[%clk 0:02:30]} 17. f3 {[%clk 0:02:06]}  Be6 {[%clk 0:02:26]} 18. N1e2 {[%clk 0:02:00]}  Ng6 {[%clk 0:02:21]} 19. f4 {[%clk 0:01:44]}  exf4 {[%clk 0:02:22]} 20. Nxf4 {[%clk 0:01:44]}  Nxf4 {[%clk 0:02:19]} 21. Bxf4 {[%clk 0:01:45]}  Qb5 {[%clk 0:02:18]} 22. b3 {[%clk 0:01:40]}  Rad8 {[%clk 0:02:17]} 23. Qf2 {[%clk 0:01:38]}  Qd7 {[%clk 0:02:09]} 24. Nh5 {[%clk 0:01:36]}  Bf8 {[%clk 0:02:08]} 25. Qg3 {[%clk 0:01:34]}  Bg4 {[%clk 0:02:00]} 26. Nf6+ {[%clk 0:01:07]}  gxf6 {[%clk 0:02:01]} 27. h3 {[%clk 0:01:07]}  h5 {[%clk 0:01:58]} 28. hxg4 {[%clk 0:01:02]}  Qxg4 {[%clk 0:01:56]} 29. Qxg4+ {[%clk 0:01:00]}  hxg4 {[%clk 0:01:57]} 30. Bxc7 {[%clk 0:01:00]}  Rc8 {[%clk 0:01:56]} 31. Bg3 {[%clk 0:00:57]}  Rc6 {[%clk 0:01:55]} 32. Rf4 {[%clk 0:00:56]}  f5 {[%clk 0:01:48]} 33. Rxf5 {[%clk 0:00:51]}  Rh6+ {[%clk 0:01:48]} 34. Kg1 {[%clk 0:00:50]}  Bg7 {[%clk 0:01:48]} 35. Raf1 {[%clk 0:00:41]}  Bd4+ {[%clk 0:01:46]} 36. Bf2 {[%clk 0:00:39]}  Rh7 {[%clk 0:01:17]} 37. Rg5+ {[%clk 0:00:32]}  Rg7 {[%clk 0:01:17]} 38. Rxg7+ {[%clk 0:00:29]}  Kxg7 {[%clk 0:01:18]} 39. Bxd4+ {[%clk 0:00:23]}  cxd4 {[%clk 0:01:19]} 40. Rf5 {[%clk 0:00:20]}  Rc8 {[%clk 0:01:18]} 41. Kf2 {[%clk 0:00:14]}  Rxc2+ {[%clk 0:01:17]} 42. Kg3 {[%clk 0:00:15]}  Rc3 {[%clk 0:01:18]} 43. Kxg4 {[%clk 0:00:14]}  Rxb3 {[%clk 0:01:16]} 44. Rf3 {[%clk 0:00:12]}  Ra3 {[%clk 0:01:15]} 45. Kf5 {[%clk 0:00:11]}  Rxa5+ {[%clk 0:01:15]} 46. e5 {[%clk 0:00:11]}  f6 {[%clk 0:01:15]} 47. Ke4 {[%clk 0:00:09]}  fxe5 {[%clk 0:01:15]} 48. Rf1 {[%clk 0:00:07]}  Rb5 {[%clk 0:01:15]} 49. g4 {[%clk 0:00:06]}  Kg6 {[%clk 0:01:15]} 50. Rf8 {[%clk 0:00:05]}  a5 {[%clk 0:01:12]} 51. Rg8+ {[%clk 0:00:05]}  Kf7 {[%clk 0:01:11]} 52. Ra8 {[%clk 0:00:05]}  b6 {[%clk 0:01:06]} 53. Kf5 {[%clk 0:00:04]}  Ke7 {[%clk 0:01:01]} 54. Ra7+ {[%clk 0:00:04]}  Kd6 {[%clk 0:01:02]} 55. Kf6 {[%clk 0:00:03]}  e4 {[%clk 0:01:00]} 56. dxe4 {[%clk 0:00:03]}  d3 {[%clk 0:01:01]} 57. Ra8 {[%clk 0:00:02]}  Kc7 {[%clk 0:00:57]} 58. e5 {[%clk 0:00:01]}  d2 {[%clk 0:00:57]} 0-1


[Site "https://www.chess.com"]

[Event "Titled Tuesday Blitz November 08 Early 2022"]
[White "Jobava, Baadur"]
[Black "Averjanov, Alexey"]
[WhiteFideId "13601520"]
[BlackFideId "14109867"]
[WhiteElo "2582"]
[BlackElo "2594"]
[Result "1-0"]
[Round "04"]
[TimeControl "180+1"]
[Date "2022.11.08"]
[WhiteClock "0:02:29"]
[BlackClock "0:02:08"]

1. b3 {[%clk 0:03:00]}  b6 {[%clk 0:03:00]} 2. Bb2 {[%clk 0:03:01]}  Bb7 {[%clk 0:03:00]} 3. c4 {[%clk 0:03:02]}  Nf6 {[%clk 0:03:00]} 4. Nf3 {[%clk 0:03:02]}  g6 {[%clk 0:03:01]} 5. d4 {[%clk 0:03:02]}  Bg7 {[%clk 0:03:01]} 6. e3 {[%clk 0:03:02]}  O-O {[%clk 0:03:01]} 7. Nc3 {[%clk 0:03:01]}  d6 {[%clk 0:03:01]} 8. Be2 {[%clk 0:03:00]}  Nbd7 {[%clk 0:03:02]} 9. O-O {[%clk 0:03:00]}  e5 {[%clk 0:03:02]} 10. d5 {[%clk 0:03:00]}  a5 {[%clk 0:02:56]} 11. Nd2 {[%clk 0:03:00]}  Qe7 {[%clk 0:02:56]} 12. a3 {[%clk 0:03:00]}  Ne8 {[%clk 0:02:54]} 13. b4 {[%clk 0:02:59]}  f5 {[%clk 0:02:54]} 14. Nb3 {[%clk 0:02:58]}  axb4 {[%clk 0:02:53]} 15. axb4 {[%clk 0:02:59]}  Qd8 {[%clk 0:02:44]} 16. Rxa8 {[%clk 0:02:58]}  Qxa8 {[%clk 0:02:43]} 17. Qc2 {[%clk 0:02:58]}  Qb8 {[%clk 0:02:40]} 18. Ra1 {[%clk 0:02:59]}  Nef6 {[%clk 0:02:23]} 19. Nb5 {[%clk 0:02:58]}  c6 {[%clk 0:02:14]} 20. dxc6 {[%clk 0:02:57]}  Bxc6 {[%clk 0:02:15]} 21. Nc3 {[%clk 0:02:55]}  d5 {[%clk 0:02:10]} 22. cxd5 {[%clk 0:02:34]}  Nxd5 {[%clk 0:02:11]} 23. Nxd5 {[%clk 0:02:31]}  Bxd5 {[%clk 0:02:12]} 24. Rd1 {[%clk 0:02:31]}  Qb7 {[%clk 0:02:08]} 25. Rxd5 {[%clk 0:02:29]} 1-0


[Site "https://www.chess.com"]